Workbook

Sheet Общая информация
A1: Наименование организации: | E1: МБОУ СОШ №6
A4: СГОЗ (общий) | C4: 8324627.09 | E4: п.4 (10% от СГОЗ или 2 000 000) | H4: 2000000 | L4: п.5 (50% СГОЗ) | M4: 4477819.9
A5: СГОЗ (остаток) | C5: =C4-G15+J15 -> 2659851.18 | E5: п.4 (остаток) | H5: =H4-G12 -> 1007290.93 | L5: п.5 (остаток) | M5: =M4-G13 -> 1214574.64
A8: Способ определения поставщика (подрядчика, исполнителя) | D8: Начальная (максимальная) цена контракта | G8: Фактическая цена контракта | J8: Расторжение контракта по соглашению сторон | M8: Экономия
A9: Состоявшиеся аукционы | D9: ='Состоявшиеся аукционы'!G2 -> 0 | G9: ='Состоявшиеся аукционы'!Q2 -> 0 | J9: ='Состоявшиеся аукционы'!AB2 -> 0 | M9: =D9-G9 -> 0
A10: Несостоявшиеся аукционы | D10: ='Несостоявшиеся аукционы'!G2 -> 0 | G10: ='Несостоявшиеся аукционы'!Q2 -> 0 | J10: ='Несостоявшиеся аукционы'!AB2 -> 0 | M10: 0
A11: Иные конкурентные закупки | D11: ='Иные конкурентные закупки'!G2 -> 1103383.5 | G11: ='Иные конкурентные закупки'!Q2 -> 1103383.5 | J11: ='Иные конкурентные закупки'!AB2 -> 170257.9 | M11: 0
A12: Ед. поставщик п.4 ч.1 | D12: ='Ед. поставщик п.4 ч.1'!H2 -> 992709.07 | G12: =D12 -> 992709.07 | J12: ='Ед. поставщик п.4 ч.1'!V2 -> 0 | M12: 0
A13: Ед. поставщик п. 5 ч. 1 | D13: ='Ед. поставщик п.5 ч.1'!H2 -> 3263245.26 | G13: =D13 -> 3263245.26 | J13: ='Ед. поставщик п.5 ч.1'!V2 -> 252038 | M13: 0
A14: Ед.поставщик за искл. п.4,5 ч.1 | D14: ='Ед.поставщик за искл. п.4,5 ч.1'!G2 -> 743423.69 | G14: =D14 -> 743423.69 | J14: ='Ед.поставщик за искл. п.4,5 ч.1'!T2 -> 15689.71 | M14: 0
A15: Всего | D15: =SUM(D9:D14) -> 6102761.52 | G15: =SUM(G9:G14) -> 6102761.52 | J15: =SUM(J9:J14) -> 437985.61 | M15: 0
A19: Всего средств потрачено по заключенным контрактам | D19: ='Ед. поставщик п.4 ч.1'!P2+'Ед. поставщик п.5 ч.1'!P2+'Ед.поставщик за искл. п.4,5 ч.1'!N2+'Состоявшиеся аукционы'!V2+'Несостоявшиеся аукционы'!V2+'Иные конкурентные закупки'!V2 -> 4131906.44

Sheet Ед. поставщик п.4 ч.1
G2: Сумма заключенных контрактов | H2: =SUM(H9:H10000) -> 992709.07 | N2: Сумма средств выплаченных по контрактам | P2: =SUM(P9:P10000) -> 867068.82 | S2: Общая сумма расторжений по контрактам/договорам | V2: =SUM(V9:V10000) -> 0
A6: № п/п | B6: Наименование муниципальной программы, национального или регионального проекта | C6: Контракт заключен в электронном виде посредством АИС "Портал поставщиков" (Да/Нет) | D6: Код бюджетной классификации | E6: № договора/контракта | F6: Дата заключения договора/контракта | G6: Предмет договора/контракта | H6: Цена договора/контракта | I6: Остаток по контракту | J6: ИНН поставщика (подрядчика, исполнителя) | K6: Поставщик (подрядчик, исполнитель) | L6: СМП и СОНО (да/нет) | M6: Сроки поставки товара (оказания услуги, выполнения работы), согласно договора/контракта; Предоставление документов на оплату Заказчику | N6: Фактическая дата поставки товара (оказания услуги, выполнения работы) | O6: Сроки оплаты согласно договора/контракта | P6: Сумма согласно документа об исполнении контракта заказчиком | Q6: Фактическая дата оплаты | R6: Изменение контракта (№, дата) | S6: Изменение контракта (увеличение цены контракта в рублях) | T6: Изменение контракта (уменьшение цены контракта в рублях) | U6: Расторжение контракта (№, дата) | V6: Сумма расторжения в рублях | W6: Примечание
A7: 1 | B7: 2 | C7: 3 | D7: 4 | E7: 5 | F7: 6 | G7: 7 | H7: 8 | I7: 9 | J7: 10 | K7: 11 | L7: 12 | M7: 13 | N7: 14 | O7: 15 | P7: 16 | Q7: 17 | R7: 18 | S7: 19 | T7: 20 | U7: 21 | V7: 22 | W7: 23
A8: 1 | B8: Муниципальная программа "Развитие образования" | D8: 902 0113 1310110490 244 | E8: № 1 | F8: 09.01.2020 | G8: Поставка бумаги для офисной техники | H8: 20000 | I8: =H8-P8 -> 0 | J8: 2353019514 | K8: ИП Котляров К.И. | M8: В течение 15 рабочих дней, со дня подписания сторонами контракта | N8: 2020-01-10 | O8: Не позднее 30 календарных дней с момента подписания акта приема-сдачи и документа на оплату | P8: 20000 | Q8: 2020-01-10 | W8: Пример
A9: 1 | B9: Муниципальная программа "Развитие образования" | C9: нет | D9: 925 0000 0000000000 244 | E9: № 6/22 | F9: 2021-01-21 | G9: Дератизационные работы | H9: 21993.04 | I9: =IF(X9 = 1, H9 + SUM(S9:S10) - SUM(T9:T10) - SUM(P9:P10) - V9,0) -> 10996.52 | J9: 2353018870 | K9: ООО "Дезинфекция" | L9: нет | M9: по мере необходимости | N9: 2022-03-28 | O9: Не позднее 30 календарных дней с момента подписания акта приема-сдачи и документа на оплату | P9: 5498.26 | Q9: 2022-03-28 | X9: 1
N10: 2022-06-27 | P10: 5498.26 | Q10: 2022-06-29 | X10: 1
A11: 2 | B11: Муниципальная программа "Развитие образования" | C11: нет | D11: 925 0000 0000000000 244 | E11: 1900-01-01 | F11: 2022-01-21 | G11: Работы по сервисному обслуживанию УУТЭ | H11: 17500 | I11: =IF(X11 = 2, H11 + SUM(S11:S14) - SUM(T11:T14) - SUM(P11:P14) - V11,0) -> 7500 | J11: 235301271520 | K11: ИП Дудкин | L11: нет | M11: согласно приложения 1 | N11: 2022-01-31 | O11: Не позднее 30 календарных дней с момента подписания акта приема-сдачи и документа на оплату | P11: 2500 | Q11: 2022-02-02 | X11: 2
N12: 2022-02-28 | P12: 2500 | Q12: 2022-03-02 | X12: 2
N13: 2022-03-28 | P13: 2500 | Q13: 2022-04-01 | X13: 2
N14: 2022-04-25 | P14: 2500 | Q14: 2022-04-29 | X14: 2
A15: 3 | B15: Муниципальная программа "Развитие образования" | C15: нет | D15: 925 0000 0000000000 244 | E15: № 39-С | F15: 2022-01-21 | G15: ТО установки системы пожарного мониторинга "Стрелец-мониторинг" | H15: 36000 | I15: =IF(X15 = 8, H15 + SUM(S15:S20) - SUM(T15:T20) - SUM(P15:P20) - V15,0) -> 18000 | J15: 2353002302 | K15: ООО "Сигнал" | L15: нет | M15: согласно графика | N15: 2022-01-31 | O15: Не позднее 30 календарных дней с момента подписания акта приема-сдачи и документа на оплату | P15: 3000 | Q15: 2022-02-17 | X15: 8
N16: 2022-02-28 | P16: 3000 | Q16: 2022-03-02 | X16: 8
N17: 2022-03-31 | P17: 3000 | Q17: 2022-04-01 | X17: 8
N18: 2022-04-30 | P18: 3000 | Q18: 2022-05-05 | X18: 8
N19: 2022-05-31 | P19: 3000 | Q19: 2022-06-01 | X19: 8
N20: 2022-06-30 | P20: 3000 | Q20: 2022-06-30 | X20: 8
A21: 4 | B21: Муниципальная программа "Развитие образования" | C21: нет | D21: 925 0000 0000000000 244 | E21: № 41 | F21: 2022-02-02 | G21: товар | H21: 13965 | I21: =IF(X21 = 9, H21 + SUM(S21:S21) - SUM(T21:T21) - SUM(P21:P21) - V21,0) -> 0 | J21: 235305769122 | K21: ИП Барма | L21: нет | M21: В течение 14 рабочих дней | O21: Не позднее 30 календарных дней с момента подписания акта приема-сдачи и документа на оплату | P21: 13965 | Q21: 2022-02-07 | X21: 9
A22: 5 | B22: Муниципальная программа "Развитие образования" | C22: нет | D22: 925 0000 0000000000 244 | E22: 73 | F22: 2022-03-01 | G22: запчасти | H22: 5533 | I22: =IF(X22 = 23, H22 + SUM(S22:S22) - SUM(T22:T22) - SUM(P22:P22) - V22,0) -> 0 | J22: 235305769122 | K22: ИП Барма | L22: нет | M22: В течение 14 рабочих дней | O22: Не позднее 30 календарных дней с момента подписания акта приема-сдачи и документа на оплату | P22: 5533 | Q22: 2022-03-04 | X22: 23
A23: 6 | B23: Муниципальная программа "Развитие образования" | C23: нет | D23: 925 0000 0000000000 244 | E23: 3827/212-1 | F23: 2022-03-02 | G23: подписка | H23: 412.32 | I23: =IF(X23 = 24, H23 + SUM(S23:S23) - SUM(T23:T23) - SUM(P23:P23) - V23,0) -> 0 | J23: 235305769122 | K23: 7724490000 | L23: нет | O23: Не позднее 30 календарных дней с момента подписания акта приема-сдачи и документа на оплату | P23: 412.32 | Q23: 2022-03-09 | X23: 24
A24: 7 | B24: Муниципальная программа "Развитие образования" | C24: нет | D24: 925 0000 0000000000 244 | E24: 97 | F24: 2022-03-23 | G24: запчасти | H24: 18320 | I24: =IF(X24 = 25, H24 + SUM(S24:S25) - SUM(T24:T25) - SUM(P24:P25) - V24,0) -> 0 | J24: 235305769122 | K24: ИП Барма | L24: нет | M24: В течение 14 рабочих дней | O24: Не позднее 30 календарных дней с момента подписания акта приема-сдачи и документа на оплату | P24: 7120 | Q24: 2022-04-01 | X24: 25
P25: 11200 | Q25: 2022-04-01 | X25: 25
A26: 8 | B26: Муниципальная программа "Развитие образования" | C26: нет | D26: 925 0000 0000000000 244 | E26: 104-ЭО | F26: 2022-03-23 | G26: отчетность | H26: 6900 | I26: =IF(X26 = 26, H26 + SUM(S26:S26) - SUM(T26:T26) - SUM(P26:P26) - V26,0) -> 0 | J26: 235306110100 | K26: ИП Казерова | L26: нет | O26: Не позднее 30 календарных дней с момента подписания акта приема-сдачи и документа на оплату | P26: 6900 | Q26: 2022-04-01 | X26: 26
A27: 9 | B27: Муниципальная программа "Развитие образования" | C27: нет | D27: 925 0000 0000000000 244 | E27: 334-ПУ | F27: 2022-03-23 | G27: консультационные услуги | H27: 6000 | I27: =IF(X27 = 27, H27 + SUM(S27:S27) - SUM(T27:T27) - SUM(P27:P27) - V27,0) -> 0 | J27: 235306110100 | K27: ИП Казерова | L27: нет | O27: Не позднее 30 календарных дней с момента подписания акта приема-сдачи и документа на оплату | P27: 6000 | Q27: 2022-04-01 | X27: 27
A28: 10 | B28: Муниципальная программа "Развитие образования" | C28: нет | D28: 925 0000 0000000000 244 | E28: 24 | F28: 2022-03-01 | G28: 1-4 классы услуга по приготовлению питания | H28: 33090 | I28: =IF(X28 = 28, H28 + SUM(S28:S29) - SUM(T28:T29) - SUM(P28:P29) - V28,0) -> 310 | J28: 2353020735 | K28: ООО "Тимашевское прт райпо" | L28: нет | N28: 2022-03-18 | O28: Не позднее 30 календарных дней с момента подписания акта приема-сдачи и документа на оплату | P28: 22616 | Q28: 2022-04-06 | X28: 28
N29: 2022-03-13 | P29: 10164 | Q29: 2022-04-11 | X29: 28
A30: 11 | B30: Муниципальная программа "Развитие образования" | C30: нет | D30: 925 0000 0000000000 244 | E30: 23 | F30: 2022-03-01 | G30: питание 1-4 классы | H30: 104234.13 | I30: =IF(X30 = 29, H30 + SUM(S30:S33) - SUM(T30:T33) - SUM(P30:P33) - V30,0) -> 977.13 | J30: 2353020735 | K30: ООО "Тимашевское прт райпо" | L30: нет | N30: 2022-03-07 | O30: Не позднее 30 календарных дней с момента подписания акта приема-сдачи и документа на оплату | P30: 30095.58 | Q30: 2022-04-06 | X30: 29
N31: 2022-03-07 | P31: 1921.02 | Q31: 2022-04-06 | X31: 29
N32: 2022-03-18 | P32: 66965.93 | Q32: 2022-04-06 | X32: 29
N33: 2022-03-18 | P33: 4274.47 | Q33: 2022-04-06 | X33: 29
A34: 12 | B34: Муниципальная программа "Развитие образования" | C34: нет | D34: 925 0000 00000000000 244 | E34: 25 | F34: 2022-03-09 | G34: оказание услуг по организации питания обучающихся инвалидов | H34: 8501.28 | I34: =IF(X34 = 30, H34 + SUM(S34:S34) - SUM(T34:T34) - SUM(P34:P34) - V34,0) -> 7929.28 | J34: 2353020735 | K34: ООО "Тимашевское прт райпо" | L34: нет | N34: 2022-03-18 | O34: Не позднее 30 календарных дней с момента подписания акта приема-сдачи и документа на оплату | P34: 572 | Q34: 2022-04-06 | X34: 30
A35: 13 | B35: Муниципальная программа "Развитие образования" | C35: нет | D35: 925 0000 000000000 244 | E35: 2022-03-11 | F35: 2022-03-11 | G35: баннер | H35: 2635 | I35: =IF(X35 = 31, H35 + SUM(S35:S35) - SUM(T35:T35) - SUM(P35:P35) - V35,0) -> 0 | J35: 235303800426 | K35: ИП Шашанков | L35: нет | O35: Не позднее 30 календарных дней с момента подписания акта приема-сдачи и документа на оплату | P35: 2635 | Q35: 2022-04-01 | X35: 31
A36: 14 | B36: Муниципальная программа "Развитие образования" | C36: нет | D36: 925 0000 000000000 244 | E36: 26 | F36: 2022-03-18 | G36: 1-4 классы услуга по приготовлению питания обучающихся с овз | H36: 14303.52 | I36: =IF(X36 = 32, H36 + SUM(S36:S39) - SUM(T36:T39) - SUM(P36:P39) - V36,0) -> 3347.52 | J36: 2353020735 | K36: ООО "Тимашевское прт райпо" | L36: нет | N36: 2022-03-18 | O36: Не позднее 30 календарных дней с момента подписания акта приема-сдачи и документа на оплату | P36: 2420 | Q36: 2022-04-06 | X36: 32
N37: 2022-03-31 | P37: 2926 | Q37: 2022-04-19 | X37: 32
N38: 2022-04-29 | P38: 3520 | Q38: 2022-05-13 | X38: 32
N39: 2022-05-20 | P39: 2090 | Q39: 2022-05-30 | X39: 32
A40: 15 | B40: Муниципальная программа "Развитие образования" | C40: нет | D40: 925 0000 000000000 244 | E40: 30 | F40: 2022-03-18 | G40: оказание услуг по приготовлению питания обучающихся инвалидов | H40: 1078 | I40: =IF(X40 = 33, H40 + SUM(S40:S40) - SUM(T40:T40) - SUM(P40:P40) - V40,0) -> 748 | J40: 2353020735 | K40: ООО "Тимашевское прт райпо" | L40: нет | N40: 2022-03-18 | O40: Не позднее 30 календарных дней с момента подписания акта приема-сдачи и документа на оплату | P40: 330 | Q40: 2022-04-13 | X40: 33
A41: 16 | B41: Муниципальная программа "Развитие образования" | C41: нет | D41: 925 0000 000000000 244 | E41: 31 | F41: 2022-03-28 | G41: оказание услуг по приготовлению питания обучающихся инвалидов | H41: 1892 | I41: =IF(X41 = 34, H41 + SUM(S41:S43) - SUM(T41:T43) - SUM(P41:P43) - V41,0) -> 968 | J41: 2353020735 | K41: ООО "Тимашевское прт райпо" | L41: нет | N41: 2022-03-31 | O41: Не позднее 30 календарных дней с момента подписания акта приема-сдачи и документа на оплату | P41: 374 | Q41: 2022-04-19 | X41: 34
N42: 2022-04-29 | P42: 308 | Q42: 2022-05-13 | X42: 34
N43: 2022-05-20 | P43: 242 | Q43: 2022-05-30 | X43: 34
A44: 17 | B44: Муниципальная программа "Развитие образования" | C44: нет | D44: 925 0000 000000000 244 | E44: 32 | F44: 2022-03-28 | G44: оказание услуг по организации питания обучающихся инвалидов | H44: 8174.3 | I44: =IF(X44 = 35, H44 + SUM(S44:S46) - SUM(T44:T46) - SUM(P44:P46) - V44,0) -> 826.6 | J44: 2353020735 | K44: ООО "Тимашевское прт райпо" | L44: нет | N44: 2022-03-31 | O44: Не позднее 30 календарных дней с момента подписания акта приема-сдачи и документа на оплату | P44: 2213.3 | Q44: 2022-04-19 | X44: 35
N45: 2022-04-29 | P45: 3170.6 | Q45: 2022-05-13 | X45: 35
N46: 2022-05-20 | P46: 1963.8 | Q46: 2022-05-30 | X46: 35
A47: 18 | B47: Муниципальная программа "Развитие образования" | C47: нет | D47: 925 0000 000000000 244 | E47: 49760012/22 | F47: 2022-03-29 | G47: предоставление права использования и абонентское обслуживание Системы Контур Экстерн | H47: 3550 | I47: =IF(X47 = 36, H47 + SUM(S47:S47) - SUM(T47:T47) - SUM(P47:P47) - V47,0) -> 0 | J47: 6663003127 | K47: АО "СКБ Контур" | L47: нет | O47: Не позднее 30 календарных дней с момента подписания акта приема-сдачи и документа на оплату | P47: 3550 | Q47: 2022-04-01 | X47: 36
A48: 19 | B48: Муниципальная программа "Развитие образования" | C48: нет | D48: 925 0000 000000000 244 | E48: 6 | F48: 2022-03-31 | G48: оказание охранных услуг | H48: 8112 | I48: =IF(X48 = 39, H48 + SUM(S48:S48) - SUM(T48:T48) - SUM(P48:P48) - V48,0) -> 0 | J48: 2308080429 | K48: ООО "Охранное предприятие "Телохранитель-Секьюрити" | L48: нет | N48: 2022-04-04 | O48: Не позднее 30 календарных дней с момента подписания акта приема-сдачи и документа на оплату | P48: 8112 | Q48: 2022-05-17 | X48: 39
A49: 20 | B49: Муниципальная программа "Развитие образования" | C49: нет | D49: 925 0000 000000000 244 | E49: 33 | F49: 2022-04-01 | G49: 1-4 классы услуга по организации питания обучающихся с овз | H49: 54479.1 | I49: =IF(X49 = 40, H49 + SUM(S49:S52) - SUM(T49:T52) - SUM(P49:P52) - V49,0) -> 16177.2 | J49: 2353020735 | K49: ООО "Тимашевское прт райпо" | L49: нет | N49: 2022-04-29 | O49: Не позднее 30 календарных дней с момента подписания акта приема-сдачи и документа на оплату | P49: 10720.04 | Q49: 2022-05-13 | X49: 40
N50: 2022-04-29 | P50: 13101.96 | Q50: 2022-05-13 | X50: 40
N51: 2022-05-20 | P51: 7963.86 | Q51: 2022-05-30 | X51: 40
N52: 2022-05-20 | P52: 6516.04 | Q52: 2022-05-30 | X52: 40
A53: 21 | B53: Муниципальная программа "Развитие образования" | C53: нет | D53: 925 0000 0000000000 244 | E53: АТОО-001468 | F53: 2022-04-04 | G53: обслуживание в Удостоверяющем центре ООО "АйТи Мониторинг" | H53: 3000 | I53: =IF(X53 = 41, H53 + SUM(S53:S53) - SUM(T53:T53) - SUM(P53:P53) - V53,0) -> 0 | J53: 2311187588 | K53: ООО "АйТи Мониторинг" | L53: нет | O53: Не позднее 30 календарных дней с момента подписания акта приема-сдачи и документа на оплату | P53: 3000 | Q53: 2022-04-13 | X53: 41
A54: 22 | B54: Муниципальная программа "Развитие образования" | C54: нет | D54: 925 0000 0000000000 244 | E54: 3898/212 | F54: 2022-04-21 | G54: поставка периодических печатных изданий | H54: 9956.38 | I54: =IF(X54 = 42, H54 + SUM(S54:S54) - SUM(T54:T54) - SUM(P54:P54) - V54,0) -> 0 | J54: 7724490000 | K54: АО "Почта России" | L54: нет | O54: Не позднее 30 календарных дней с момента подписания акта приема-сдачи и документа на оплату | P54: 9956.38 | Q54: 2022-04-27 | X54: 42
A55: 23 | B55: Муниципальная программа "Развитие образования" | C55: нет | D55: 925 0000 000000000 244 | E55: 32 | F55: 2022-04-25 | G55: бензокоса Штурм | H55: 8990 | I55: =IF(X55 = 43, H55 + SUM(S55:S55) - SUM(T55:T55) - SUM(P55:P55) - V55,0) -> 0 | J55: 235300201840 | K55: ИП Рыжков | L55: нет | N55: 2022-04-25 | O55: Не позднее 30 календарных дней с момента подписания акта приема-сдачи и документа на оплату | P55: 8990 | Q55: 2022-04-27 | X55: 43
A56: 24 | B56: Муниципальная программа "Развитие образования" | C56: нет | D56: 925 0000 000000000 244 | E56: 2022-04-29 | F56: 2022-04-29 | G56: баннер | H56: 6039 | I56: =IF(X56 = 44, H56 + SUM(S56:S56) - SUM(T56:T56) - SUM(P56:P56) - V56,0) -> 0 | J56: 235303800426 | K56: ИП Шашанков | L56: нет | O56: Не позднее 30 календарных дней с момента подписания акта приема-сдачи и документа на оплату | P56: 6039 | Q56: 2022-05-06 | X56: 44
A57: 25 | B57: Муниципальная программа "Развитие образования" | C57: нет | D57: 925 0000 000000000 244 | E57: 2022-03-15 | F57: 1900-01-22 | G57: заправка картриджей и ремонт оргтехники | H57: 14850 | I57: =IF(X57 = 45, H57 + SUM(S57:S57) - SUM(T57:T57) - SUM(P57:P57) - V57,0) -> 0 | J57: 235300809163 | K57: ИП Коваленко | L57: нет | O57: Не позднее 30 календарных дней с момента подписания акта приема-сдачи и документа на оплату | P57: 14850 | Q57: 2022-04-01 | X57: 45
A58: 26 | B58: Муниципальная программа "Развитие образования" | C58: нет | D58: 925 0000 000000000 244 | E58: 23-8554 | F58: 2022-02-15 | G58: аттестаты | H58: 5172 | I58: =IF(X58 = 46, H58 + SUM(S58:S58) - SUM(T58:T58) - SUM(P58:P58) - V58,0) -> 0 | J58: 7706526550 | K58: ООО "Спецбланк Москва" | L58: нет | N58: 2022-03-28 | O58: Не позднее 30 календарных дней с момента подписания акта приема-сдачи и документа на оплату | P58: 5172 | Q58: 2022-04-14 | X58: 46
A59: 27 | B59: Муниципальная программа "Развитие образования" | C59: нет | D59: 925 0000 000000000 244 | E59: 2022-04-06 | F59: 2022-01-20 | G59: оценка рыночной стоимости | H59: 7500 | I59: =IF(X59 = 47, H59 + SUM(S59:S59) - SUM(T59:T59) - SUM(P59:P59) - V59,0) -> 0 | J59: 2335015365 | K59: СОЮЗ "ТТПП" | L59: нет | O59: Не позднее 30 календарных дней с момента подписания акта приема-сдачи и документа на оплату | P59: 7500 | Q59: 2022-04-19 | X59: 47
A60: 28 | B60: Муниципальная программа "Развитие образования" | C60: нет | D60: 925 0000 000000000 244 | E60: 1900-01-07 | F60: 2022-05-12 | G60: запчасти | H60: 7625 | I60: =IF(X60 = 48, H60 + SUM(S60:S60) - SUM(T60:T60) - SUM(P60:P60) - V60,0) -> 0 | J60: 235301943813 | K60: ИП Отиско | L60: нет | O60: в течение 10 рабочих дней | P60: 7625 | Q60: 2022-05-16 | X60: 48
A61: 29 | B61: Муниципальная программа "Развитие образования" | C61: нет | D61: 925 0000 000000000 244 | E61: 2022-05-25 | F61: 2022-05-25 | G61: баннер | H61: 3605 | I61: =IF(X61 = 49, H61 + SUM(S61:S61) - SUM(T61:T61) - SUM(P61:P61) - V61,0) -> 0 | J61: 235303800426 | K61: ИП Шашанков | L61: нет | O61: в течение 10 рабочих дней | P61: 3605 | Q61: 2022-05-25 | X61: 49
A62: 30 | B62: Муниципальная программа "Развитие образования" | C62: нет | D62: 925 0000 000000000 244 | E62: СП-Т-81/22 | F62: 2022-05-25 | G62: семинар | H62: 4000 | I62: =IF(X62 = 50, H62 + SUM(S62:S62) - SUM(T62:T62) - SUM(P62:P62) - V62,0) -> 0 | J62: 2311163812 | K62: ООО "АСМ-Партнер" | L62: нет | O62: в течение 10 рабочих дней | P62: 4000 | Q62: 2022-05-27 | X62: 50
A63: 31 | B63: Муниципальная программа "Развитие образования" | C63: нет | D63: 925 0000 000000000 244 | E63: 8 | F63: 2022-05-30 | G63: краска | H63: 19895 | I63: =IF(X63 = 51, H63 + SUM(S63:S63) - SUM(T63:T63) - SUM(P63:P63) - V63,0) -> 0 | J63: 235301943813 | K63: ИП Отиско | L63: нет | O63: в течение 10 рабочих дней | P63: 19895 | Q63: 2022-05-30 | X63: 51
A64: 32 | B64: Муниципальная программа "Развитие образования" | C64: нет | D64: 925 0000 000000000 244 | E64: 2031 | F64: 2022-06-10 | G64: утилизация | H64: 17640 | I64: =IF(X64 = 52, H64 + SUM(S64:S64) - SUM(T64:T64) - SUM(P64:P64) - V64,0) -> 0 | J64: 6162076156 | K64: ООО "ВторИнвестЮг" | L64: нет | O64: в течение 10 рабочих дней | P64: 17640 | Q64: 2022-06-22 | X64: 52
A65: 33 | B65: Муниципальная программа "Развитие образования" | C65: нет | D65: 925 0000 000000000 244 | E65: 44713 | F65: 2022-06-01 | G65: баннер | H65: 2827 | I65: =IF(X65 = 53, H65 + SUM(S65:S65) - SUM(T65:T65) - SUM(P65:P65) - V65,0) -> 0 | J65: 235303800426 | K65: ИП Шашанков | L65: нет | O65: в течение 10 рабочих дней | P65: 2827 | Q65: 2022-06-15 | X65: 53
A66: 34 | B66: Муниципальная программа "Развитие образования" | C66: нет | D66: 925 0000 000000000 244 | E66: 39 | F66: 2022-06-14 | G66: хозтовары | H66: 5340 | I66: =IF(X66 = 54, H66 + SUM(S66:S67) - SUM(T66:T67) - SUM(P66:P67) - V66,0) -> 0 | J66: 235301943813 | K66: ИП Отиско | L66: нет | O66: в течение 10 рабочих дней | P66: 3850 | Q66: 2022-06-15 | X66: 54
P67: 1490 | Q67: 2022-06-15 | X67: 54
A68: 35 | B68: Муниципальная программа "Развитие образования" | C68: нет | D68: 925 0000 000000000 244 | E68: 42 | F68: 2022-06-20 | G68: краска | H68: 28940 | I68: =IF(X68 = 55, H68 + SUM(S68:S69) - SUM(T68:T69) - SUM(P68:P69) - V68,0) -> 0 | J68: 235301943813 | K68: ИП Отиско | L68: нет | O68: в течение 10 рабочих дней | P68: 28440 | Q68: 2022-06-22 | X68: 55
P69: 500 | Q69: 2022-06-22 | X69: 55
A70: 36 | B70: Муниципальная программа "Развитие образования" | C70: нет | D70: 925 0000 000000000 244 | E70: 020-ПН-22 | F70: 2022-06-20 | G70: испытание электроустановок | H70: 19500 | I70: =IF(X70 = 56, H70 + SUM(S70:S70) - SUM(T70:T70) - SUM(P70:P70) - V70,0) -> 0 | J70: 235302001163 | K70: ип ромчук | L70: нет | O70: в течение 10 рабочих дней | P70: 19500 | Q70: 2022-06-22 | X70: 56
A71: 37 | B71: Муниципальная программа "Развитие образования" | C71: нет | D71: 925 0000 000000000 244 | E71: 42 | F71: 2022-06-27 | G71: хозтовары | H71: 15934 | I71: =IF(X71 = 57, H71 + SUM(S71:S71) - SUM(T71:T71) - SUM(P71:P71) - V71,0) -> 0 | J71: 235305536400 | K71: ип быстров | L71: нет | O71: в течение 10 рабочих дней | P71: 15934 | Q71: 2022-06-28 | X71: 57
A72: 38 | B72: Муниципальная программа "Развитие образования" | C72: нет | D72: 925 0000 000000000 244 | E72: 44 | F72: 2022-06-27 | G72: хозтовары | H72: 8596 | I72: =IF(X72 = 58, H72 + SUM(S72:S72) - SUM(T72:T72) - SUM(P72:P72) - V72,0) -> 0 | J72: 235305536400 | K72: ип быстров | L72: нет | O72: в течение 10 рабочих дней | P72: 8596 | Q72: 2022-06-28 | X72: 58
A73: 39 | B73: Муниципальная программа "Развитие образования" | C73: нет | D73: 925 0000 000000000 244 | E73: 41 | F73: 2022-06-27 | G73: хозтовары | H73: 56860 | I73: =IF(X73 = 59, H73 + SUM(S73:S74) - SUM(T73:T74) - SUM(P73:P74) - V73,0) -> 0 | J73: 235305536400 | K73: ип быстров | L73: нет | O73: в течение 10 рабочих дней | P73: 9430 | Q73: 2022-06-28 | X73: 59
P74: 47430 | Q74: 2022-06-28 | X74: 59
A75: 40 | B75: Муниципальная программа "Развитие образования" | C75: нет | D75: 925 0000 000000000 244 | E75: 36 | F75: 2022-06-17 | G75: питание лагерь | H75: 29232 | I75: =IF(X75 = 60, H75 + SUM(S75:S75) - SUM(T75:T75) - SUM(P75:P75) - V75,0) -> 0 | J75: 23530020735 | K75: ООО "Тимашевское прт райпо" | L75: нет | O75: в течение 10 рабочих дней | P75: 29232 | Q75: 2022-07-14 | X75: 60
A76: 41 | B76: Муниципальная программа "Развитие образования" | C76: нет | D76: 925 0000 000000000 244 | E76: 35 | F76: 2022-06-17 | G76: питание лагерь | H76: 77940 | I76: =IF(X76 = 61, H76 + SUM(S76:S76) - SUM(T76:T76) - SUM(P76:P76) - V76,0) -> 0 | J76: 23530020735 | K76: ООО "Тимашевское прт райпо" | L76: нет | O76: в течение 10 рабочих дней | P76: 77940 | Q76: 2022-07-14 | X76: 61
A77: 42 | B77: Муниципальная программа "Развитие образования" | C77: нет | D77: 925 0000 000000000 244 | E77: 6 | F77: 2022-07-09 | G77: экскурсионные услуги | H77: 12500 | I77: =IF(X77 = 62, H77 + SUM(S77:S77) - SUM(T77:T77) - SUM(P77:P77) - V77,0) -> 0 | J77: 2353016418 | K77: Приход храма | L77: нет | O77: в течение 7 рабочих дней | P77: 12500 | Q77: 2022-07-14 | X77: 62
A78: 43 | B78: Муниципальная программа "Развитие образования" | C78: нет | D78: 925 0000 000000000 244 | E78: 50 | F78: 2022-06-30 | G78: выполнение работ | H78: 17675 | I78: =IF(X78 = 63, H78 + SUM(S78:S78) - SUM(T78:T78) - SUM(P78:P78) - V78,0) -> 0 | J78: 6168087210 | K78: ООО "Главпожснаб" | L78: нет | O78: в течение 7 рабочих дней | P78: 17675 | Q78: 2022-07-11 | X78: 63
A79: 44 | B79: Муниципальная программа "Развитие образования" | C79: нет | D79: 925 0000 000000000 244 | E79: 09-ОТ | F79: 2022-07-04 | G79: обучение | H79: 8500 | I79: =IF(X79 = 64, H79 + SUM(S79:S79) - SUM(T79:T79) - SUM(P79:P79) - V79,0) -> 0 | J79: 2364010270 | K79: ООО "ЦДО "ПРОФТЕХОБУЧЕНИЕ" | L79: нет | O79: в течение 7 рабочих дней | P79: 8500 | Q79: 2022-07-19 | X79: 64
A80: 45 | B80: Муниципальная программа "Развитие образования" | C80: нет | D80: 925 0000 000000000 244 | E80: 379 | F80: 2022-07-11 | G80: двери | H80: 79500 | I80: =IF(X80 = 65, H80 + SUM(S80:S80) - SUM(T80:T80) - SUM(P80:P80) - V80,0) -> 0 | J80: 252801469324 | K80: ИП Терземан | L80: нет | O80: в течение 7 рабочих дней | P80: 79500 | Q80: 2022-07-14 | X80: 65
A81: 46 | B81: Муниципальная программа "Развитие образования" | C81: нет | D81: 925 0000 000000000 244 | E81: 52 | F81: 2022-07-14 | G81: стенды | H81: 75000 | I81: =IF(X81 = 66, H81 + SUM(S81:S81) - SUM(T81:T81) - SUM(P81:P81) - V81,0) -> 0 | J81: 231111684948 | K81: ИП Бессмолкин | L81: нет | O81: в течение 7 рабочих дней | P81: 75000 | X81: 66
A82: 47 | B82: Муниципальная программа "Развитие образования" | C82: нет | D82: 925 0000 000000000 244 | E82: 53 | F82: 2022-07-14 | G82: жалюзи | H82: 57860 | I82: =IF(X82 = 67, H82 + SUM(S82:S82) - SUM(T82:T82) - SUM(P82:P82) - V82,0) -> 57860 | J82: 231111684948 | K82: ИП Бессмолкин | L82: нет | O82: в течение 7 рабочих дней | X82: 67
A83: 48 | B83: Муниципальная программа "Развитие образования" | C83: нет | D83: 925 0000 000000000 244 | E83: 2042 | F83: 2022-07-27 | G83: Услуги по утилизации отходов | H83: 21560 | I83: =IF(X83 = 68, H83 + SUM(S83:S83) - SUM(T83:T83) - SUM(P83:P83) - V83,0) -> 0 | J83: 6162076156 | K83: ООО "ВторИнвестЮг" | L83: нет | O83: в течение 7 рабочих дней | P83: 21560 | Q83: 2022-07-29 | X83: 68
X84: 69

Sheet Ед. поставщик п.5 ч.1
F2: Сумма заключенных контрактов | H2: =SUM(H9:H9999) -> 3263245.26 | N2: Сумма средств выплаченных по контрактам | P2: =SUM(P9:P9999) -> 1985242.04 | S2: Общая сумма расторжений по контрактам/договорам | V2: =SUM(V9:V9999) -> 252038
A6: № п/п | B6: Наименование муниципальной программы, национального или регионального проекта | C6: Контракт заключен в электронном виде посредством АИС "Портал поставщиков" (Да/Нет) | D6: Код бюджетной классификации | E6: № договора/контракта | F6: Дата заключения договора/контракта | G6: Предмет договора/контракта | H6: Цена договора/контракта | I6: Остаток по контракту | J6: ИНН поставщика (подрядчика, исполнителя) | K6: Поставщик (подрядчик, исполнитель) | L6: СМП и СОНО (Да/Нет) | M6: Сроки поставки товара (оказания услуги, выполнения работы), согласно контракта; Предоставление документов на оплату Закзчику | N6: Фактическая дата поставки товара (оказания услуги, выполнения работы) и (или) предоставление документов на оплату и подписание документов о приемке | O6: Сроки оплаты согласно договора/контракта | P6: Сумма согласно документа об исполнении контракта заказчиком | Q6: Фактическая дата оплаты | R6: Изменение контракта (№, дата) | S6: Изменение контракта (увеличение цены контракта в рублях) | T6: Изменение контракта (уменьшение цены контракта в рублях) | U6: Расторжение контракта (№, дата) | V6: Сумма расторжения | W6: Примечание
A7: 1 | B7: 2 | C7: 3 | D7: 4 | E7: 5 | F7: 6 | G7: 7 | H7: 8 | I7: 9 | J7: 10 | K7: 11 | L7: 12 | M7: 13 | N7: 14 | O7: 15 | P7: 16 | Q7: 17 | R7: 18 | S7: 19 | T7: 20 | U7: 21 | V7: 22 | W7: 23
A8: 1 | B8: Муниципальная программа "Развитие образования" | D8: 902 0113 1310110490 244 | E8: № 1 | F8: 2020-01-09 | G8: Поставка бумаги для офисной техники | H8: 20000 | I8: 0 | J8: 2353019514 | K8: ИП Котляров К.И. | M8: В течение 15 рабочих дней, со дня подписания сторонами контракта | N8: 2020-01-10 | O8: Не позднее 30 календарных дней с момента подписания Заказчиком и Подрядчиком акта приема-сдачи и предоставленного Подрядчиком документа на оплату | P8: 20000 | Q8: 2020-01-10 | W8: Пример
A9: 1 | B9: Муниципальная программа "Развитие образования" | C9: нет | D9: 925 0000 0000000000 244 | E9: 11 | F9: 2021-12-30 | G9: Оказание охранных услуг | H9: 172800 | I9: =IF(X9 = 1, H9 + SUM(S9:S11) - SUM(T9:T11) - SUM(P9:P11) - V9,0) -> 0 | J9: 2304067057 | K9: ООО ЧОО "Легион" | L9: нет | M9: круглосуточно | N9: 2021-01-31 | O9: Не позднее 30 календарных дней с момента подписания Заказчиком и Подрядчиком акта приема-сдачи и предоставленного Подрядчиком документа на оплату | P9: 59520 | Q9: 2022-02-18 | X9: 1
N10: 2022-02-28 | P10: 53760 | Q10: 2022-03-10 | X10: 1
N11: 2022-03-31 | P11: 59520 | Q11: 2022-04-22 | X11: 1
A12: 2 | B12: Муниципальная программа "Развитие образования" | C12: нет | D12: 925 0000 0000000000 244 | E12: 34000752 | F12: 2021-12-30 | G12: Оказание охранных услуг (ктс) | H12: 27288.84 | I12: =IF(X12 = 2, H12 + SUM(S12:S18) - SUM(T12:T18) - SUM(P12:P18) - V12,0) -> 11370.35 | J12: 2310163739 | K12: филиал ФГКУ "УВО по Тимашевскому району" | L12: нет | M12: круглосуточно | N12: 2022-01-31 | O12: Не позднее 30 календарных дней с момента подписания Заказчиком и Подрядчиком акта приема-сдачи и предоставленного Подрядчиком документа на оплату | P12: 2274.07 | Q12: 2022-02-10 | X12: 2
N13: 2022-02-28 | P13: 2274.07 | Q13: 2022-03-03 | X13: 2
N14: 2022-03-31 | P14: 2274.07 | Q14: 2022-04-01 | X14: 2
N15: 2022-04-30 | P15: 2274.07 | Q15: 2022-04-29 | X15: 2
N16: 2022-05-31 | P16: 2274.07 | Q16: 2022-06-01 | X16: 2
N17: 2022-06-30 | P17: 2274.07 | Q17: 2022-06-30 | X17: 2
N18: 2022-07-31 | P18: 2274.07 | Q18: 2022-07-29 | X18: 2
A19: 3 | B19: Муниципальная программа "Развитие образования" | C19: нет | D19: 925 0000 0000000000 244 | E19: № 67 | F19: 2020-12-31 | G19: Оказание услуг по обращению с твердыми коммунальными отходами | H19: 41067 | I19: =IF(X19 = 3, H19 + SUM(S19:S24) - SUM(T19:T24) - SUM(P19:P24) - V19,0) -> 20935.98 | J19: 2308131994 | K19: АО "Мусороуборочная компания" | L19: нет | M19: по заявке Потребителя | N19: 2022-01-31 | O19: Не позднее 10 календарных дней с момента подписания Заказчиком и Подрядчиком акта приема-сдачи и предоставленного Подрядчиком документа на оплату | P19: 3355.17 | Q19: 2022-02-24 | X19: 3
N20: 2022-02-28 | P20: 3355.17 | Q20: 2022-03-28 | X20: 3
N21: 2022-03-31 | P21: 3355.17 | Q21: 2022-04-29 | X21: 3
N22: 2022-04-30 | P22: 3355.17 | Q22: 2022-05-05 | X22: 3
N23: 2022-05-31 | P23: 3355.17 | Q23: 2022-06-07 | X23: 3
N24: 2022-06-30 | P24: 3355.17 | Q24: 2022-07-11 | X24: 3
A25: 4 | B25: Муниципальная программа "Развитие образования" | C25: нет | D25: 925 0000 0000000000 244 | E25: № 23070500203 | F25: 2021-12-30 | G25: Энергоснабжение | H25: 362862.05 | I25: =IF(X25 = 4, H25 + SUM(S25:S41) - SUM(T25:T41) - SUM(P25:P41) - V25,0) -> 113975.78 | J25: 2308119595 | K25: ПАО "ТНС энерго Кубань" | L25: нет | M25: круглосуточно | N25: 2022-01-01 | O25: 30 % - до 10 числа, 40 % - до 25 числа | P25: 10943.05 | Q25: 2022-01-18 | X25: 4
N26: 2022-01-01 | P26: 21507.61 | Q26: 2022-01-18 | X26: 4
N27: 2022-02-01 | P27: 16130.71 | Q27: 2022-02-02 | X27: 4
N28: 2022-01-31 | P28: 8462.45 | Q28: 2022-02-17 | X28: 4
N29: 2022-02-01 | P29: 18223.32 | Q29: 2022-02-17 | X29: 4
N30: 2022-03-01 | P30: 13667.5 | Q30: 2022-03-02 | X30: 4
N31: 2022-02-28 | P31: 12077.63 | Q31: 2022-03-16 | X31: 4
N32: 2022-03-01 | P32: 21631.94 | Q32: 2022-03-16 | X32: 4
N33: 2022-04-01 | P33: 16223.96 | Q33: 2022-04-01 | X33: 4
N34: 2022-04-01 | P34: 14940.6 | Q34: 2022-04-14 | X34: 4
N35: 2022-05-01 | P35: 11205.44 | Q35: 2022-05-05 | X35: 4
N36: 2022-04-30 | P36: 13261.18 | Q36: 2022-05-17 | X36: 4
N37: 2022-05-01 | P37: 20569.63 | Q37: 2022-05-17 | X37: 4
N38: 2022-06-01 | P38: 15427.22 | Q38: 2022-06-01 | X38: 4
N39: 2022-06-01 | P39: 14532.25 | Q39: 2022-06-16 | X39: 4
N40: 2022-07-01 | P40: 10899.19 | Q40: 2022-07-04 | X40: 4
N41: 2022-07-01 | P41: 9182.59 | Q41: 2022-07-20 | X41: 4
A42: 5 | B42: Муниципальная программа "Развитие образования" | C42: нет | D42: 925 0000 0000000000 244 | E42: № 1 | F42: 2021-12-30 | G42: Водоснабжение | H42: 23926.64 | I42: =IF(X42 = 5, H42 + SUM(S42:S48) - SUM(T42:T48) - SUM(P42:P48) - V42,0) -> 9091.26 | J42: 2353246210 | K42: ООО "Коммунальник" | L42: нет | M42: круглосуточно | N42: 2021-01-31 | O42: до 25 числа | P42: 1789.56 | Q42: 2022-01-27 | X42: 5
N43: 2022-02-15 | P43: 1908.87 | Q43: 2022-02-24 | X43: 5
N44: 2022-03-16 | P44: 1908.87 | Q44: 2022-03-28 | X44: 5
N45: 2022-04-15 | P45: 5567.52 | Q45: 2022-04-29 | X45: 5
N46: 2022-05-17 | P46: 1550.95 | Q46: 2022-06-02 | X46: 5
N47: 2022-06-17 | P47: 1033.97 | Q47: 2022-06-30 | X47: 5
N48: 2022-07-21 | P48: 1075.64 | Q48: 2022-07-29 | X48: 5
A49: 6 | B49: Муниципальная программа "Развитие образования" | C49: нет | D49: 925 0000 0000000000 244 | E49: 15 | F49: 2022-01-21 | G49: Услуги по организации горячего питания обучающихся по образовательным программам начального общего образования | H49: 278918.64 | I49: =IF(X49 = 6, H49 + SUM(S49:S58) - SUM(T49:T58) - SUM(P49:P58) - V49,0) -> 36299.34 | J49: 2353020735 | K49: ООО "Тимашевское ПРТ Райпо" | L49: нет | M49: с 10.01.2022 по 28.02.2022 | N49: 2022-02-04 | O49: Не позднее 30 календарных дней с момента подписания Заказчиком и Подрядчиком акта приема-сдачи и предоставленного Подрядчиком документа на оплату | P49: 1550.95 | Q49: 2022-02-24 | X49: 6
N50: 2022-01-31 | P50: 36218.93 | Q50: 2022-02-24 | X50: 6
N51: 2022-01-31 | P51: 2311.87 | Q51: 2022-02-24 | X51: 6
N52: 2022-01-21 | P52: 70874.45 | Q52: 2022-02-24 | X52: 6
N53: 2022-01-21 | P53: 4523.95 | Q53: 2022-02-24 | X53: 6
N54: 2022-02-18 | P54: 36479.5 | Q54: 2022-03-31 | X54: 6
N55: 2022-02-18 | P55: 2328.5 | Q55: 2022-03-31 | X55: 6
N56: 2022-02-28 | P56: 60191.17 | Q56: 2022-03-15 | X56: 6
N57: 2022-02-28 | P57: 3842.03 | Q57: 2022-03-15 | X57: 6
N58: 2022-02-04 | P58: 24297.95 | Q58: 2022-02-24 | X58: 6
A59: 7 | B59: Муниципальная программа "Развитие образования" | C59: нет | D59: 925 0000 0000000000 244 | E59: № ДГ-22/30 | F59: 2021-12-30 | G59: Услуги по техническому сопровождению системы мониторинга транспортных средств | H59: 7200 | I59: =IF(X59 = 7, H59 + SUM(S59:S60) - SUM(T59:T60) - SUM(P59:P60) - V59,0) -> 3600 | J59: 2369000660 | K59: ООО "КАНкорт" | M59: круглосуточно с 01.01.2021 по 31.12.2021 | N59: 2021-03-31 | O59: Не позднее 30 календарных дней с момента подписания Заказчиком и Подрядчиком акта приема-сдачи и предоставленного Подрядчиком документа на оплату | P59: 1800 | Q59: 2022-04-06 | X59: 7
N60: 2022-06-30 | P60: 1800 | Q60: 2022-07-08 | X60: 7
A61: 8 | B61: Муниципальная программа "Развитие образования" | C61: нет | D61: 925 0000 0000000000 244 | E61: 16 | F61: 2022-01-21 | G61: Услуги по организации питания учащихся | H61: 88545.6 | I61: =IF(X61 = 8, H61 + SUM(S61:S66) - SUM(T61:T66) - SUM(P61:P66) - V61,0) -> 11523.6 | J61: 2353020735 | K61: ООО "Тимашевское ПРТ Райпо" | M61: с 10.01.2022 по 28.02.2022 | N61: 2022-01-31 | O61: Не позднее 30 календарных дней с момента подписания Заказчиком и Подрядчиком акта приема-сдачи и предоставленного Подрядчиком документа на оплату | P61: 12232 | Q61: 2022-02-17 | X61: 8
N62: 2022-01-21 | P62: 23936 | Q62: 2022-02-17 | X62: 8
N63: 2022-02-04 | P63: 8206 | Q63: 2022-02-22 | X63: 8
N64: 2022-02-18 | P64: 20328 | Q64: 2022-03-04 | X64: 8
N65: 2022-02-28 | P65: 12320 | Q65: 2022-03-15 | X65: 8
X66: 8
A67: 9 | B67: Муниципальная программа "Развитие образования" | C67: нет | D67: 925 0000 00000000000 244 | E67: 17 | F67: 2021-01-21 | G67: Услуги по организации горячего питания ОВЗ | H67: 67274.7 | I67: =IF(X67 = 9, H67 + SUM(S67:S73) - SUM(T67:T73) - SUM(P67:P73) - V67,0) -> 8231.5 | J67: 2353020735 | K67: ООО "Тимашевское ПРТ Райпо" | M67: с 10.01.2022 по 31.03.2022 | N67: 2022-01-31 | O67: Не позднее 30 календарных дней с момента подписания Заказчиком и Подрядчиком акта приема-сдачи и предоставленного Подрядчиком документа на оплату | P67: 9704.86 | Q67: 2022-03-05 | X67: 9
N68: 2022-01-31 | P68: 7940.54 | Q68: 2022-03-05 | X68: 9
N69: 2022-02-28 | P69: 11349.73 | Q69: 2022-03-15 | X69: 9
N70: 2022-02-28 | P70: 9286.37 | Q70: 2022-03-15 | X70: 9
N71: 2022-03-31 | P71: 9342.89 | Q71: 2022-04-19 | X71: 9
N72: 2022-03-31 | P72: 11418.81 | Q72: 2022-04-19 | X72: 9
X73: 9
A74: 10 | B74: Муниципальная программа "Развитие образования" | C74: нет | D74: 925 0000 0000000000 244 | E74: 18 | F74: 2022-01-21 | G74: Организация горячего питания обучающихся 6,10 | H74: 100558.08 | I74: =IF(X74 = 10, H74 + SUM(S74:S83) - SUM(T74:T83) - SUM(P74:P83) - V74,0) -> 21084.08 | J74: 2353020735 | K74: ООО "Тимашевское ПРТ Райпо" | L74: нет | M74: с 10.01.2022 по 25.05.2022 | N74: 2022-01-31 | O74: Не позднее 30 календарных дней с момента подписания Заказчиком и Подрядчиком акта приема-сдачи и предоставленного Подрядчиком документа на оплату | P74: 9372 | Q74: 2022-02-22 | X74: 10
N75: 2022-01-31 | P75: 6590 | Q75: 2022-02-22 | X75: 10
N76: 2022-02-28 | P76: 11952 | Q76: 2022-03-15 | X76: 10
N77: 2022-02-28 | P77: 5370 | Q77: 2022-03-15 | X77: 10
N78: 2022-03-31 | P78: 11250 | Q78: 2022-04-13 | X78: 10
N79: 2022-03-31 | P79: 5430 | Q79: 2022-04-13 | X79: 10
N80: 2022-04-29 | P80: 13440 | Q80: 2022-05-16 | X80: 10
N81: 2022-04-29 | P81: 6140 | Q81: 2022-05-16 | X81: 10
N82: 2022-05-20 | P82: 6960 | Q82: 2022-06-01 | X82: 10
N83: 2022-05-20 | P83: 2970 | Q83: 2022-06-01 | X83: 10
A84: 11 | B84: Муниципальная программа "Развитие образования" | C84: нет | D84: 925 0000 0000000000 244 | E84: № 166 | F84: 2021-12-30 | G84: Оказание услуг электросвязи юридическому лицу | H84: 13000 | I84: =IF(X84 = 11, H84 + SUM(S84:S89) - SUM(T84:T89) - SUM(P84:P89) - V84,0) -> 6710.19 | J84: 7707049388 | K84: ПАО "Ростелеком" | L84: нет | M84: с 01.01.2022 по 31.12.2022 | N84: 2022-01-31 | O84: Не позднее 30 календарных дней с момента подписания Заказчиком и Подрядчиком акта приема-сдачи и предоставленного Подрядчиком документа на оплату | P84: 1307.74 | Q84: 2022-02-10 | X84: 11
N85: 2022-02-28 | P85: 986.63 | Q85: 2022-03-16 | X85: 11
N86: 2022-03-31 | P86: 1059.7 | Q86: 2022-04-06 | X86: 11
N87: 2022-04-30 | P87: 1042.21 | Q87: 2022-05-17 | X87: 11
N88: 2022-05-31 | P88: 949.49 | Q88: 2022-06-07 | X88: 11
N89: 2022-06-30 | P89: 944.04 | Q89: 2022-07-19 | X89: 11
A90: 12 | B90: Муниципальная программа "Развитие образования" | C90: нет | D90: 925 0000 0000000000 244 | E90: № 166-Б2 | F90: 2021-12-30 | G90: Услуги электросвязи | H90: 2000 | I90: =IF(X90 = 12, H90 + SUM(S90:S94) - SUM(T90:T94) - SUM(P90:P94) - V90,0) -> 1860.79 | J90: 7707049388 | K90: ПАО "Ростелеком" | L90: нет | M90: с 01.01.2022 по 31.12.2022 | N90: 2022-01-31 | O90: Не позднее 30 календарных дней с момента подписания Заказчиком и Подрядчиком акта приема-сдачи и предоставленного Подрядчиком документа на оплату | P90: 24.77 | Q90: 2022-02-10 | X90: 12
N91: 2022-02-28 | P91: 13.44 | Q91: 2022-03-16 | X91: 12
N92: 2022-03-31 | P92: 11.14 | Q92: 2022-04-06 | X92: 12
N93: 2022-04-30 | P93: 55.68 | Q93: 2022-05-17 | X93: 12
N94: 2022-06-30 | P94: 47.62 | Q94: 2022-07-19 | X94: 12
A95: 13 | B95: Муниципальная программа "Развитие образования" | C95: нет | D95: 925 0000 0000000000 244 | E95: № 6/5-ТК | F95: 2021-12-30 | G95: Договор поставки нефтепродуктов | H95: 508820 | I95: =IF(X95 = 13, H95 + SUM(S95:S97) - SUM(T95:T97) - SUM(P95:P97) - V95,0) -> 0.4 | J95: 2310195709 | K95: ООО "Альянс Розница" | L95: нет | M95: С 01.01.2021 по 31.03.2021 | N95: 2021-01-31 | O95: Не позднее 30 календарных дней с момента подписания Заказчиком и Подрядчиком акта приема-сдачи и предоставленного Подрядчиком документа на оплату | P95: 76610 | Q95: 2022-03-01 | V95: 252038 | X95: 13
N96: 2022-02-28 | P96: 95918 | Q96: 2022-03-15 | X96: 13
N97: 2022-03-31 | P97: 84253.6 | Q97: 2022-04-13 | X97: 13
A98: 14 | B98: Муниципальная программа "Развитие образования" | C98: нет | D98: 925 0000 0000000000 244 | E98: 21/22 | F98: 2021-12-30 | G98: Выполнение работ (оказание услуг) по предоставлению охраняемой автостоянки, предрейсовому и послерейсовому то автотранспорта и и медицинскому водителейосвидетельствованию | H98: 106880 | I98: =IF(X98 = 16, H98 + SUM(S98:S103) - SUM(T98:T103) - SUM(P98:P103) - V98,0) -> 50700 | J98: 235305769122 | K98: ИП Барма | L98: нет | N98: 2022-01-31 | O98: Не позднее 30 календарных дней с момента подписания Заказчиком и Подрядчиком акта приема-сдачи и предоставленного Подрядчиком документа на оплату | P98: 8400 | Q98: 2022-02-17 | X98: 16
N99: 2022-02-28 | P99: 9340 | Q99: 2022-03-15 | X99: 16
N100: 2022-03-31 | P100: 9180 | Q100: 2022-04-13 | X100: 16
N101: 2022-04-30 | P101: 10100 | Q101: 2022-05-16 | X101: 16
N102: 2022-05-31 | P102: 11960 | Q102: 2022-06-24 | X102: 16
N103: 2022-06-30 | P103: 7200 | Q103: 2022-07-08 | X103: 16
A104: 15 | B104: Муниципальная программа "Развитие образования" | C104: нет | D104: 925 0000 0000000000 244 | E104: 5539 | F104: 2022-03-16 | G104: стол | H104: 10930.36 | I104: =IF(X104 = 17, H104 + SUM(S104:S104) - SUM(T104:T104) - SUM(P104:P104) - V104,0) -> 0 | J104: 2312068671 | K104: ООО "Сервмс-Юг-ККМ" | L104: нет | N104: 2022-02-18 | O104: Не позднее 30 календарных дней с момента подписания Заказчиком и Подрядчиком акта приема-сдачи и предоставленного Подрядчиком документа на оплату | P104: 10930.36 | Q104: 2022-03-29 | X104: 17
A105: 16 | B105: Муниципальная программа "Развитие образования" | C105: нет | D105: 925 0000 0000000000 244 | E105: 26 | F105: 2022-03-31 | G105: бензин | H105: 392000 | I105: =IF(X105 = 18, H105 + SUM(S105:S107) - SUM(T105:T107) - SUM(P105:P107) - V105,0) -> 196668.5 | J105: 2310195709 | K105: ООО "Альянс Розница" | L105: нет | N105: 2022-04-30 | O105: Не позднее 30 календарных дней с момента подписания Заказчиком и Подрядчиком акта приема-сдачи и предоставленного Подрядчиком документа на оплату | P105: 103655.5 | Q105: 2022-05-16 | X105: 18
N106: 2022-05-31 | P106: 84476 | Q106: 2022-06-08 | X106: 18
N107: 2022-06-30 | P107: 7200 | Q107: 2022-07-08 | X107: 18
A108: 17 | B108: Муниципальная программа "Развитие образования" | C108: нет | D108: 925 0000 0000000000 244 | E108: 56 | F108: 2022-04-11 | G108: поставка учебной литературы | H108: 126663.35 | I108: =IF(X108 = 19, H108 + SUM(S108:S110) - SUM(T108:T110) - SUM(P108:P110) - V108,0) -> 7413.45 | J108: 7715995942 | K108: АО "Издательство "Просвещение" | L108: нет | O108: Не позднее 30 календарных дней с момента подписания Заказчиком и Подрядчиком акта приема-сдачи и предоставленного Подрядчиком документа на оплату | P108: 102316.5 | Q108: 2022-05-06 | X108: 19
P109: 16174.4 | Q109: 2022-06-27 | X109: 19
P110: 759 | Q110: 2022-07-29 | X110: 19
A111: 18 | B111: Муниципальная программа "Развитие образования" | C111: нет | D111: 925 0000 0000000000 244 | E111: 6-22-2 | F111: 2022-04-19 | G111: дератизация | H111: 6500 | I111: =IF(X111 = 20, H111 + SUM(S111:S111) - SUM(T111:T111) - SUM(P111:P111) - V111,0) -> 0 | K111: ООО "Дератизация" | L111: нет | N111: 2022-06-14 | O111: Не позднее 30 календарных дней с момента подписания Заказчиком и Подрядчиком акта приема-сдачи и предоставленного Подрядчиком документа на оплату | P111: 6500 | Q111: 2022-06-15 | X111: 20
A112: 19 | B112: Муниципальная программа "Развитие образования" | C112: нет | D112: 925 0000 000000000 244 | E112: 286 | F112: 2022-04-26 | G112: заправка картриджа | H112: 4050 | I112: =IF(X112 = 21, H112 + SUM(S112:S112) - SUM(T112:T112) - SUM(P112:P112) - V112,0) -> 0 | J112: 235300809163 | K112: ИП Коваленко | L112: нет | O112: Не позднее 30 календарных дней с момента подписания Заказчиком и Подрядчиком акта приема-сдачи и предоставленного Подрядчиком документа на оплату | P112: 4050 | Q112: 2022-05-16 | X112: 21
A113: 20 | B113: Муниципальная программа "Развитие образования" | C113: нет | D113: 925 0000 000000000 244 | E113: 36 | F113: 2022-04-26 | G113: Считыватель | H113: 7000 | I113: =IF(X113 = 22, H113 + SUM(S113:S113) - SUM(T113:T113) - SUM(P113:P113) - V113,0) -> 0 | J113: 235305540660 | K113: ИП Карлов | L113: нет | N113: 2022-04-26 | O113: Не позднее 30 календарных дней с момента подписания Заказчиком и Подрядчиком акта приема-сдачи и предоставленного Подрядчиком документа на оплату | P113: 7000 | Q113: 2022-04-26 | X113: 22
A114: 21 | B114: Муниципальная программа "Развитие образования" | C114: нет | D114: 925 0000 000000000 244 | E114: 6 | F114: 2022-04-15 | G114: образовательные услуги | H114: 7400 | I114: =IF(X114 = 23, H114 + SUM(S114:S114) - SUM(T114:T114) - SUM(P114:P114) - V114,0) -> 0 | J114: 2312062743 | K114: ГБОУ ИРО Краснодарского края | L114: нет | N114: 2022-04-30 | O114: Не позднее 30 календарных дней с момента подписания Заказчиком и Подрядчиком акта приема-сдачи и предоставленного Подрядчиком документа на оплату | P114: 7400 | Q114: 2022-05-18 | X114: 23
A115: 22 | B115: Муниципальная программа "Развитие образования" | C115: нет | D115: 925 0000 000000000 244 | E115: 16 | F115: 2022-03-30 | G115: поставка учебной литературы | H115: 14400 | I115: =IF(X115 = 24, H115 + SUM(S115:S115) - SUM(T115:T115) - SUM(P115:P115) - V115,0) -> 0 | J115: 2310047193 | K115: ООО "ОИПЦ "Перспективы образования" | L115: нет | O115: Не позднее 30 календарных дней с момента подписания Заказчиком и Подрядчиком акта приема-сдачи и предоставленного Подрядчиком документа на оплату | P115: 14400 | Q115: 2022-06-27 | X115: 24
A116: 23 | B116: Муниципальная программа "Развитие образования" | C116: нет | D116: 925 0000 000000000 244 | E116: 30 | F116: 2022-03-30 | G116: поставка учебно-педагогической документации | H116: 2215 | I116: =IF(X116 = 25, H116 + SUM(S116:S116) - SUM(T116:T116) - SUM(P116:P116) - V116,0) -> 0 | J116: 2310132554 | K116: ООО "Краснодарский учколлектор" | L116: нет | O116: Не позднее 30 календарных дней с момента подписания Заказчиком и Подрядчиком акта приема-сдачи и предоставленного Подрядчиком документа на оплату | P116: 2215 | Q116: 2022-05-06 | X116: 25
A117: 24 | B117: Муниципальная программа "Развитие образования" | C117: нет | D117: 925 0000 000000000 244 | E117: 30 | F117: 2022-05-17 | G117: бумага | H117: 14580 | I117: =IF(X117 = 26, H117 + SUM(S117:S118) - SUM(T117:T118) - SUM(P117:P118) - V117,0) -> 0 | J117: 235306030599 | K117: ИП Чуприков | L117: нет | O117: в течение 10 рабочих дней | P117: 14580 | Q117: 2022-05-18 | X117: 26
X118: 26
A119: 25 | B119: Муниципальная программа "Развитие образования" | C119: нет | D119: 925 0000 000000000 244 | E119: 6/22 | F119: 2022-05-23 | G119: ремонт пищеблока | H119: 500000 | I119: =IF(X119 = 27, H119 + SUM(S119:S119) - SUM(T119:T119) - SUM(P119:P119) - V119,0) -> 500000 | J119: 235302264998 | K119: ИП Жук | L119: нет | O119: в течение 10 рабочих дней | X119: 27
A120: 26 | B120: Муниципальная программа "Развитие образования" | C120: нет | D120: 925 0000 000000000 244 | E120: 69 | F120: 2022-06-07 | G120: заправка картриджа | H120: 1865 | I120: =IF(X120 = 28, H120 + SUM(S120:S120) - SUM(T120:T120) - SUM(P120:P120) - V120,0) -> 0 | J120: 235300809163 | K120: ИП Коваленко | L120: нет | O120: в течение 10 рабочих дней | P120: 1865 | Q120: 2022-06-15 | X120: 28
A121: 27 | B121: Муниципальная программа "Развитие образования" | C121: нет | D121: 925 0000 000000000 244 | E121: 170/22 | F121: 2022-06-30 | G121: стоянка, то | H121: 26500 | I121: =IF(X121 = 29, H121 + SUM(S121:S121) - SUM(T121:T121) - SUM(P121:P121) - V121,0) -> 26500 | J121: 235305769122 | K121: ИП Барма | L121: нет | O121: в течение 7 рабочих дней | X121: 29
A122: 28 | B122: Муниципальная программа "Развитие образования" | C122: нет | D122: 925 0000 000000000 244 | E122: 49 | F122: 2022-07-01 | G122: мебель | H122: 348000 | I122: =IF(X122 = 30, H122 + SUM(S122:S122) - SUM(T122:T122) - SUM(P122:P122) - V122,0) -> 0 | J122: 2311204586 | K122: ООО "ТИТ-Мебель" | L122: нет | O122: в течение 7 рабочих дней | P122: 348000 | Q122: 2022-07-27 | X122: 30
A123: 29 | B123: Муниципальная программа "Развитие образования" | C123: нет | D123: 925 0000 000000000 244 | I123: =IF(X123 = 31, H123 + SUM(S123:S123) - SUM(T123:T123) - SUM(P123:P123) - V123,0) -> 0 | X123: 31
X124: 32

Sheet Ед.поставщик за искл. п.4,5 ч.1
E2: Сумма заключенных контрактов | G2: =SUM(G9:G9999) -> 743423.69 | L2: Сумма средств выплаченных по контрактам | N2: =SUM(N9:N9999) -> 727733.98 | Q2: Общая сумма расторжений по контрактам/договорам | T2: =SUM(T9:T9999) -> 15689.71
A6: № п/п | B6: № в реестре контрактов | C6: Код бюджетной классификации | D6: № контракта | E6: Дата заключения | F6: Предмет договора/контракта | G6: Цена контракта (Объем финансового обеспечения подлежащий к оплате в текущем фин. году) | H6: Остаток по контракту | I6: ИНН поставщика (подрядчика, исполнителя) | J6: Поставщик (подрядчик, исполнитель) | K6: Сроки поставки товара (оказания услуги, выполнения работы), согласно контракта; Предоставление документов на оплату Закзчику | L6: Фактическая дата поставки товара (оказания услуги, выполнения работы) и (или) предоставление документов на оплату и подписание документов о приемке | M6: Сроки оплаты согласно договора/контракта | N6: Сумма согласно документа об исполнении контракта заказчиком | O6: Фактическая дата оплаты | P6: Изменение контракта (№, дата) | Q6: Изменение контракта (увеличение цены контракта в рублях) | R6: Изменение контракта (уменьшение цены контракта в рублях) | S6: Расторжение контракта (№, дата) | T6: Сумма расторжения | U6: Примечание
A7: 1 | B7: 2 | C7: 3 | D7: 4 | E7: 5 | F7: 6 | G7: 7 | H7: 8 | I7: 9 | J7: 10 | K7: 11 | L7: 12 | M7: 13 | N7: 14 | O7: 15 | P7: 16 | Q7: 17 | R7: 18 | S7: 19 | T7: 20 | U7: 21
A8: 1 | B8: 3235301125818100175 | C8: 9020104 5210000190244 | D8: 123 | E8: 2019-12-24 | F8: Поставка электрической энергии | G8: 100000 | H8: 90000 | I8: 2308091759 | J8: АО "НЭСК" | K8: Поставка электрической энергии осуществляется постоянно, в течение срока действия контракта | L8: 2019-12-02 | M8: До 10 числа расчетного месяца в размере 30%, до 25 числа расчетного месяца 40%, до 18 числа месяца, следующего за расчетным | N8: 10000 | O8: 2019-01-24 | U8: Пример
A9: 1 | C9: 925 0000 0000000000 244 | D9: 1401 | E9: 2021-12-30 | F9: Поставка тепловой энергии | G9: 743423.69 | H9: =IF(V9 = 1, G9 + SUM(Q9:Q12) - SUM(R9:R12) - SUM(N9:N12) - T9,0) -> -3.637978807e-11 | I9: 2312054894 | J9: АО "АТЭК" | K9: Согласно графика | L9: 2022-01-31 | M9: до 25 числа | N9: 226666.12 | O9: 2022-02-24 | T9: 15689.71 | V9: 1
L10: 2022-02-28 | N10: 211302.06 | O10: 2022-03-17 | V10: 1
L11: 2021-03-31 | N11: 199763.59 | O11: 2022-04-19 | V11: 1
L12: 2022-04-30 | N12: 90002.21 | O12: 2022-05-25 | V12: 1
A13: 2 | H13: =IF(V13 = 2, G13 + SUM(Q13:Q13) - SUM(R13:R13) - SUM(N13:N13) - T13,0) -> 0 | V13: 2
V14: 3

Sheet Состоявшиеся аукционы
E2: Сумма начальных (максимальных) цен контрактов | G2: =SUM(G9:G9999) -> 0 | O2: Сумма заключенных контрактов | Q2: =SUM(Q9:Q9999) -> 0 | T2: Сумма средств выплаченных по контрактам | V2: =SUM(V9:V9999) -> 0 | Y2: Общая сумма расторжений по контрактам/договорам | AB2: =SUM(AB9:AB9999) -> 0
A6: № п/п | B6: Наименование муниципальной программы, национального или регионального проекта | C6: ИКЗ (Идентификационный код закупки) | D6: Код бюджетной классификации | E6: № извещения | F6: Объект закупки | G6: Н(М)ЦК | H6: Экономия | I6: Количество поданных заявок | J6: Количество заявок признанные несоответствующими | K6: СМП и СОНО | L6: № в реестре контрактов | M6: № контракта | N6: Дата заключения | O6: ИНН поставщика (подрядчика, исполнителя) | P6: Поставщик (подрядчик, исполнитель) | Q6: Цена контракта | R6: Остаток по контракту | S6: Сроки поставки товара (оказания услуги, выполнения работы), согласно контракта | T6: Фактическая дата поставки товара (оказания услуги, выполнения работы) и (или) предоставление документов на оплату и подписание документов о приемке | U6: Сроки оплаты согласно контракта | V6: Сумма согласно документа об исполнении контракта заказчиком | W6: Фактическая дата оплаты | X6: Изменение контракта (№, дата) | Y6: Изменение контракта (увеличение цены контракта в рублях) | Z6: Изменение контракта (уменьшение цены контракта в рублях) | AA6: Расторжение контракта (№, дата) | AB6: Сумма расторжения | AC6: Примечание
A7: 1 | B7: 2 | C7: 3 | D7: 4 | E7: 5 | F7: 6 | G7: 7 | H7: 8 | I7: 9 | J7: 10 | K7: 11 | L7: 12 | M7: 13 | N7: 14 | O7: 15 | P7: 16 | Q7: 17 | R7: 18 | S7: 19 | T7: 20 | U7: 21 | V7: 22 | W7: 23 | X7: 24 | Y7: 25 | Z7: 26 | AA7: 27 | AB7: 28 | AC7: 29
A8: 1 | C8: 193235301125823530100103000010000244 | D8: 902 0113 1210310010 244 | E8: 0818300019919000194 | F8: Поставка картриджа и тонер-картриджей | G8: 15500.01 | H8: =G8-Q8 -> 6725 | I8: 6 | J8: 0 | K8: Нет | L8: 3235301125819000079 | M8: Ф.2019.412162 | N8: 2019-07-09 | O8: 3443923035 | P8: ООО "АНАЛИТИК ЦЕНТР" | Q8: 8775.01 | R8: =Q8-V8 -> 0 | S8: В течение 20 рабочих дней со дня заключения сторонами муниципального контракта | T8: 2019-07-31 | U8: Не позднее 30 календарных дней с момента подписания Заказчиком документа о приемке выполненных работ и представленного Подрядчиком документа на оплату | V8: 8775.01 | W8: 2019-08-19 | AC8: Пример
AD9: 2

Sheet Несостоявшиеся аукционы
E2: Сумма начальных (максимальных) цен контрактов | G2: =SUM(G9:G9999) -> 0 | O2: Сумма заключенных контрактов | Q2: =SUM(Q9:Q9999) -> 0 | T2: Сумма средств выплаченных по контрактам | V2: =SUM(V9:V9999) -> 0 | Y2: Общая сумма расторжений по контрактам/договорам | AB2: =SUM(AB9:AB9999) -> 0
A6: № п/п | B6: Наименование муниципальной программы, национального или регионального проекта | C6: ИКЗ (Идентификационный код закупки) | D6: Код бюджетной классификации | E6: № извещения | F6: Объект закупки | G6: Н(М)ЦК | H6: Экономия | I6: Количество поданных заявок | J6: Количество заявок признанные несоответствующими | K6: СМП и СОНО | L6: № в реестре контрактов | M6: № контракта | N6: Дата заключения | O6: ИНН поставщика (подрядчика, исполнителя) | P6: Поставщик (подрядчик, исполнитель) | Q6: Цена контракта (Объем финансового обеспечения подлежащий к оплате в текущем фин. году) | R6: Остаток по контракту | S6: Сроки поставки товара (оказания услуги, выполнения работы), согласно контракта | T6: Фактическая дата поставки товара (оказания услуги, выполнения работы) и (или) предоставление документов на оплату и подписание документов о приемке | U6: Сроки оплаты согласно контракта | V6: Сумма согласно документа об исполнении контракта заказчиком | W6: Фактическая дата оплаты | X6: Изменение контракта (№, дата) | Y6: Изменение контракта (увеличение цены контракта в рублях) | Z6: Изменение контракта (уменьшение цены контракта в рублях) | AA6: Расторжение контракта (№, дата) | AB6: Сумма расторжения | AC6: Примечание
A7: 1 | B7: 2 | C7: 3 | D7: 4 | E7: 5 | F7: 6 | G7: 7 | H7: 8 | I7: 9 | J7: 10 | K7: 11 | L7: 12 | M7: 13 | N7: 14 | O7: 15 | P7: 16 | Q7: 17 | R7: 18 | S7: 19 | T7: 20 | U7: 21 | V7: 22 | W7: 23 | X7: 24 | Y7: 25 | Z7: 26 | AA7: 27 | AB7: 28 | AC7: 29
A8: 1 | C8: 193235301125823530100103000010000244 | D8: 902 0113 1210310010 244 | E8: 0818300019919000194 | F8: Поставка картриджа и тонер-картриджей | G8: 15500.01 | H8: =G8-Q8 -> 6725 | I8: 6 | J8: 0 | K8: Нет | L8: 3235301125819000079 | M8: Ф.2019.412162 | N8: 2019-07-09 | O8: 3443923035 | P8: ООО "АНАЛИТИК ЦЕНТР" | Q8: 8775.01 | R8: =Q8-V8 -> 0 | S8: В течение 20 рабочих дней со дня заключения сторонами муниципального контракта | T8: 2019-07-31 | U8: Не позднее 30 календарных дней с момента подписания Заказчиком документа о приемке выполненных работ и представленного Подрядчиком документа на оплату | V8: 8775.01 | W8: 2019-08-19 | AC8: Пример
AD9: 2

Sheet Иные конкурентные закупки
E2: Сумма начальных (максимальных) цен контрактов | G2: =SUM(G9:G10000) -> 1103383.5 | O2: Сумма заключенных контрактов | Q2: =SUM(Q9:Q10000) -> 1103383.5 | T2: Сумма средств выплаченных по контрактам | V2: =SUM(V9:V10000) -> 551861.6 | Y2: Общая сумма расторжений по контрактам/договорам | AB2: =SUM(AB9:AB10000) -> 170257.9
A6: № п/п | B6: Наименование муниципальной программы, национального или регионального проекта | C6: ИКЗ (Идентификационный код закупки) | D6: Код бюджетной классификации | E6: № извещения | F6: Объект закупки | G6: Н(М)ЦК | H6: Экономия | I6: Количество поданных заявок | J6: Количество заявок признанные несоответствующими | K6: СМП и СОНО | L6: № в реестре контрактов | M6: № контракта | N6: Дата заключения | O6: ИНН поставщика (подрядчика, исполнителя) | P6: Поставщик (подрядчик, исполнитель) | Q6: Цена контракта | R6: Остаток по контракту | S6: Сроки поставки товара (оказания услуги, выполнения работы), согласно контракта | T6: Фактическая дата поставки товара (оказания услуги, выполнения работы) и (или) предоставление документов на оплату и подписание документов о приемке | U6: Сроки оплаты согласно контракта | V6: Сумма согласно документа об исполнении контракта заказчиком | W6: Фактическая дата оплаты | X6: Изменение контракта (№, дата) | Y6: Изменение контракта (увеличение цены контракта в рублях) | Z6: Изменение контракта (уменьшение цены контракта в рублях) | AA6: Расторжение контракта (№, дата) | AB6: Сумма расторжения | AC6: Примечание
A7: 1 | B7: 2 | C7: 3 | D7: 4 | E7: 5 | F7: 6 | G7: 7 | H7: 8 | I7: 9 | J7: 10 | K7: 11 | L7: 12 | M7: 13 | N7: 14 | O7: 15 | P7: 16 | Q7: 17 | R7: 18 | S7: 19 | T7: 20 | U7: 21 | V7: 22 | W7: 23 | X7: 24 | Y7: 25 | Z7: 26 | AA7: 27 | AB7: 28 | AC7: 29
A8: 1 | C8: 193235301125823530100103000010000244 | D8: 902 0113 1210310010 244 | E8: 0818300019919000194 | F8: Поставка картриджа и тонер-картриджей | G8: 15500.01 | H8: =G8-Q8 -> 6725 | I8: 6 | J8: 0 | K8: Нет | L8: 3235301125819000079 | M8: Ф.2019.412162 | N8: 2019-07-09 | O8: 3443923035 | P8: ООО "АНАЛИТИК ЦЕНТР" | Q8: 8775.01 | R8: =Q8-V8 -> 0 | S8: В течение 20 рабочих дней со дня заключения сторонами муниципального контракта | T8: 2019-07-31 | U8: Не позднее 30 календарных дней с момента подписания Заказчиком документа о приемке выполненных работ и представленного Подрядчиком документа на оплату | V8: 8775.01 | W8: 2019-08-19 | AC8: Пример
A9: 1 | C9: 223235301409723530100100100015629244 | F9: услуги по организации горячего питания | G9: 545683.5 | H9: =IF(AD9 = 1, G9 - Q9,0) -> 0 | I9: 1 | K9: да | M9: 0818300019922000015 | N9: 2022-03-21 | O9: 2353020735 | P9: ООО "Тимашевское ПРТ райпо" | Q9: 545683.5 | R9: =IF(AD9 = 1, Q9 + SUM(Y9:Y23) - SUM(Z9:Z23) - SUM(V9:V23) - AB9,0) -> -2.910383046e-11 | T9: 2022-04-13 | U9: В течение 10 рабочих дней | V9: 25674 | W9: 2022-04-21 | AB9: 170257.9 | AD9: 1
T10: 2022-04-13 | V10: 4852.44 | W10: 2022-04-29 | AD10: 1
T11: 2022-04-13 | V11: 76020.66 | W11: 2022-04-29 | AD11: 1
T12: 2022-04-27 | V12: 24882 | W12: 2022-05-16 | AD12: 1
T13: 2022-04-27 | V13: 4702.75 | W13: 2022-05-16 | AD13: 1
T14: 2022-04-27 | V14: 73675.55 | W14: 2022-05-16 | AD14: 1
T15: 2022-05-11 | V15: 11946 | W15: 2022-05-25 | AD15: 1
T16: 2022-05-13 | V16: 7348 | W16: 2022-05-25 | AD16: 1
T17: 2022-05-11 | V17: 35372.08 | W17: 2022-05-25 | AD17: 1
T18: 2022-05-11 | V18: 2257.82 | W18: 2022-05-25 | AD18: 1
T19: 2022-05-13 | V19: 21757.41 | W19: 2022-05-25 | AD19: 1
T20: 2022-05-13 | V20: 1388.79 | W20: 2022-05-25 | AD20: 1
T21: 2022-05-25 | V21: 20614 | W21: 2022-05-30 | AD21: 1
T22: 2022-05-25 | V22: 61038.01 | W22: 2022-05-30 | AD22: 1
T23: 2022-05-25 | V23: 3896.09 | W23: 2022-05-30 | AD23: 1
A24: 2 | C24: 223235301409723530100100090018010244 | F24: оказание охранных услуг | G24: 557700 | H24: =IF(AD24 = 2, G24 - Q24,0) -> 0 | K24: да | M24: 0818300019922000031 | N24: 2022-04-04 | O24: 2308080429 | P24: ООО "Охранное предприятие "Телохранитель -Секьюрити" | Q24: 557700 | R24: =IF(AD24 = 2, Q24 + SUM(Y24:Y26) - SUM(Z24:Z26) - SUM(V24:V26) - AB24,0) -> 381264 | T24: 2022-05-12 | U24: В течение 10 рабочих дней | V24: 52728 | W24: 2022-05-17 | AD24: 2
T25: 2022-06-03 | V25: 62868 | W25: 2022-06-07 | AD25: 2
T26: 2022-07-06 | V26: 60840 | W26: 2022-07-11 | AD26: 2
AD27: 3

Sheet Настройки (hidden)
A1: 83 | B1: 48 | C1: 9 | D1: Ед. поставщик п.4 ч.1 | F1: Index | G1: Index | H1: Index | I1: Index | J1: Index | K1: Index
A2: TekStrokaP4 | B2: TekNomerP4 | C2: NachStrokaP4 | F2: 68 | G2: 31 | H2: 2 | I2: 1 | J2: 1 | K2: 2
F3: Index+1 | G3: Index+1 | H3: Index+1 | I3: Index+1 | J3: Index+1 | K3: Index+1
A4: 123 | B4: 29 | C4: 9 | D4: Ед. поставщик п.5 ч.1 | F4: 69 | G4: 32 | H4: 3 | I4: 2 | J4: 2 | K4: 3
A5: TekStrokaP5 | B5: TekNomerP5 | C5: NachStrokaP5
A7: 13 | B7: 2 | C7: 9 | D7: Ед.поставщик за искл. п.4,5 ч.1
A8: TekStrokaSt93 | B8: TekNomerSt93 | C8: NachStrokaSt93
A10: 8 | B10: 0 | C10: 9 | D10: Состоявшиеся аукционы
A11: TekStrokaSEA | B11: TekNomerSEA | C11: NachStrokaSEA
A13: 8 | B13: 0 | C13: 9 | D13: Несостоявшиеся аукционы
A14: TekStrokaNEA | B14: TekNomerNEA | C14: NachStrokaNEA
A16: 26 | B16: 2 | C16: 9 | D16: Иные конкурентные закупки
A17: TekStrokaIKZ | B17: TekNomerIKZ | C17: NachStrokaIKZ
